fUSD/lending_fUSD_20260523
["ID","MTS","AMOUNT","RATE_DAILY","PERIOD"]
[422837783,1779503440000,-2000.0,8.913e-05,2]
[422837774,1779503440000,-160.0,8.851e-05,2]
[422837785,1779503440000,-150.0,8.922e-05,2]
[422837775,1779503440000,-150.0,8.851e-05,2]
[422837766,1779503440000,-150.0,8.799e-05,2]
[422837760,1779503440000,-8309.0,8.762e-05,2]
[422837763,1779503440000,-150.0,8.769e-05,2]
[422837757,1779503440000,-2135.0,8.743e-05,2]
[422837756,1779503440000,-6130.0,8.741e-05,2]
[422837759,1779503440000,-291.0,8.762e-05,2]
[422837762,1779503440000,-9556.0,8.769e-05,2]
[422837765,1779503440000,-150.0,8.785e-05,2]
[422837755,1779503440000,-380.0,8.74e-05,2]
[422837758,1779503440000,-150.0,8.751e-05,2]
[422837761,1779503440000,-150.0,8.768e-05,2]
[422837767,1779503440000,-150.0,8.801e-05,2]
[422837772,1779503440000,-208.78535381,8.851e-05,2]
[422837770,1779503440000,-150.0,8.835e-05,2]
[422837773,1779503440000,-215.31523495,8.851e-05,2]
[422837776,1779503440000,-494.33,8.864e-05,2]
[422837764,1779503440000,-150.0,8.785e-05,2]
[422837769,1779503440000,-150.0,8.818e-05,2]
[422837844,1779503441000,-169.7,0.00010904,2]
[422837838,1779503441000,-433.0,0.0001039,2]
[422837833,1779503441000,-169.7,0.00010065,2]
[422837846,1779503441000,-150.0,0.00010959,2]
[422837835,1779503441000,-4000.0,0.00010278,2]
[422837828,1779503441000,-189.16930569,0.0001,2]
[422837834,1779503441000,-262.72305528,0.000101,2]
[422837829,1779503441000,-213.6456078,0.0001,2]
[422837826,1779503441000,-164.2,9.647e-05,2]
[422837822,1779503441000,-1680.0,9.446e-05,2]
[422837837,1779503441000,-2351.0,0.0001039,2]
[422837825,1779503441000,-196.24003769,9.546e-05,2]
[422837845,1779503441000,-150.0,0.00010959,2]
[422837839,1779503441000,-4000.0,0.00010529,2]
[422837851,1779503441000,-7512.68682553,0.00011099,2]
[422837841,1779503441000,-448203.07636344,0.000107,2]
[422837840,1779503441000,-304.72347668,0.00010679,2]
[422837843,1779503441000,-9389.13428138,0.000109,2]
[422837842,1779503441000,-4000.0,0.00010779,2]
[422837847,1779503441000,-150.0,0.00010989,2]
[422837849,1779503441000,-7512.68682553,0.00011099,2]
[422837850,1779503441000,-7512.68682553,0.00011099,2]
[422837852,1779503441000,-7512.68682553,0.00011099,2]
[422837848,1779503441000,-4000.0,0.0001103,2]
[422837860,1779503441000,-3223.62,0.00011281,2]
[422837859,1779503441000,-188.34,0.00011233,2]
[422837858,1779503441000,-200.0,0.00011205,2]
[422837855,1779503441000,-10047.20875933,0.00011099,2]
[422837827,1779503441000,-846.6682,9.889e-05,2]
[422837836,1779503441000,-89279.91839165,0.000103,2]
[422837824,1779503441000,-250.0,9.529e-05,2]
[422837816,1779503441000,-168.29394614,9.151e-05,2]
[422837821,1779503441000,-1852.42,9.413e-05,2]
[422837856,1779503441000,-10047.20875933,0.00011099,2]
[422837794,1779503441000,-150.0,8.984e-05,2]
[422837796,1779503441000,-150.0,9.001e-05,2]
[422837798,1779503441000,-150.0,9.018e-05,2]
[422837799,1779503441000,-150.0,9.034e-05,2]
[422837797,1779503441000,-150.0,9.01e-05,2]
[422837795,1779503441000,-150.0,8.998e-05,2]
[422837804,1779503441000,-150.0,9.074e-05,2]
[422837800,1779503441000,-150.0,9.051e-05,2]
[422837802,1779503441000,-150.0,9.067e-05,2]
[422837801,1779503441000,-150.0,9.059e-05,2]
[422837803,1779503441000,-150.0,9.067e-05,2]
[422837806,1779503441000,-150.0,9.084e-05,2]
[422837817,1779503441000,-154.5001945,9.151e-05,2]
[422837823,1779503441000,-255.0,9.446e-05,2]
[422837818,1779503441000,-157489.6112,9.173e-05,2]
[422837808,1779503441000,-231.34,9.116e-05,2]
[422837805,1779503441000,-150.0,9.08e-05,2]
[422837810,1779503441000,-150.0,9.134e-05,2]
[422837812,1779503441000,-151.25107528,9.151e-05,2]
[422837815,1779503441000,-153.81319139,9.151e-05,2]
[422837809,1779503441000,-150.0,9.117e-05,2]
[422837811,1779503441000,-153.58436249,9.151e-05,2]
[422837814,1779503441000,-150.54625846,9.151e-05,2]
[422837813,1779503441000,-155.65775915,9.151e-05,2]
[422837820,1779503441000,-164.2,9.293e-05,2]
[422837830,1779503441000,-164.2,0.00010001,2]
[422837819,1779503441000,-169.7,9.226e-05,2]
[422837831,1779503441000,-2000.0,0.00010027,2]
[422837832,1779503441000,-4000.0,0.00010027,2]
[422837807,1779503441000,-150.0,9.101e-05,2]
[422837853,1779503441000,-10047.20875941,0.00011099,2]
[422837900,1779503441000,-1000.0,0.000132,2]
[422837854,1779503441000,-10047.20875933,0.00011099,2]
[422837894,1779503441000,-169.7,0.00012581,2]
[422837896,1779503441000,-10047.20875933,0.00012798,2]
[422837897,1779503441000,-7512.68682553,0.00012798,2]
[422837901,1779503441000,-315.0,0.000132,2]
[422837895,1779503441000,-304.72347666,0.0001279,2]
[422837903,1779503441000,-1604.0,0.000134,2]
[422837899,1779503441000,-308.0,0.000132,2]
[422837898,1779503441000,-446.23,0.00012996,2]
[422837904,1779503441000,-2315.0,0.000134,2]
[422837907,1779503441000,-322.0,0.000134,2]
[422837911,1779503441000,-169.073487,0.00013424,2]
[422837912,1779503441000,-172.061085,0.00013424,2]
[422837914,1779503441000,-1061.0,0.00013467,5]
[422837906,1779503441000,-1588.0,0.000134,2]
[422837890,1779503441000,-2000.0,0.00012256,2]
[422837908,1779503441000,-2315.0,0.000134,2]
[422837915,1779503441000,-10047.20875933,0.00013498,2]
[422837905,1779503441000,-2333.0,0.000134,2]
[422837909,1779503441000,-163.0,0.000134,2]
[422837913,1779503441000,-1326.0,0.00013467,5]
[422837916,1779503441000,-7512.68682553,0.00013498,2]
[422837918,1779503441000,-2771.7111,0.00013598,2]
[422837917,1779503441000,-1000.0,0.000135,2]
[422837920,1779503441000,-300.0,0.00013697,2]
[422837921,1779503441000,-666.0,0.00013697,2]
[422837924,1779503441000,-500.0,0.00013698,2]
[422837925,1779503441000,-501.56156198,0.00013698,2]
[422837919,1779503441000,-300.0,0.00013697,2]
[422837857,1779503441000,-2000.0,0.00011142,2]
[422837922,1779503441000,-500.0,0.00013698,2]
[422837910,1779503441000,-237.02402,0.00013424,2]
[422837902,1779503441000,-2000.0,0.0001337,2]
[422837923,1779503441000,-501.29264556,0.00013698,2]
[422837891,1779503441000,-1127.02,0.00012329,2]
[422837893,1779503441000,-4609.0,0.00012572,2]
[422837862,1779503441000,-1314.85443165,0.000113,2]
[422837873,1779503441000,-300.0,0.00012086,2]
[422837861,1779503441000,-999.99,0.00011281,2]
[422837871,1779503441000,-3635.0,0.00011747,2]
[422837874,1779503441000,-300.0,0.00012086,2]
[422837863,1779503441000,-10047.20875933,0.00011396,2]
[422837866,1779503441000,-736.0,0.00011429,2]
[422837869,1779503441000,-1273.963,0.00011747,2]
[422837870,1779503441000,-1224.0,0.00011747,2]
[422837864,1779503441000,-7512.68682553,0.00011396,2]
[422837865,1779503441000,-3292.0,0.00011429,2]
[422837867,1779503441000,-446.23,0.00011552,2]
[422837868,1779503441000,-169.7,0.00011743,2]
[422837875,1779503441000,-666.0,0.00012086,2]
[422837872,1779503441000,-6060.0,0.00011747,2]
[422837878,1779503441000,-1123.23,0.00012087,2]
[422837892,1779503441000,-691.0,0.00012571,2]
[422837889,1779503441000,-184.0,0.0001221,2]
[422837888,1779503441000,-7512.68682553,0.00012097,2]
[422837876,1779503441000,-353.22,0.00012087,2]
[422837880,1779503441000,-9999.99,0.00012087,2]
[422837883,1779503441000,-2656.54,0.00012087,2]
[422837887,1779503441000,-10047.20875933,0.00012097,2]
[422837877,1779503441000,-499.99,0.00012087,2]
[422837886,1779503441000,-9999.99,0.00012087,2]
[422837885,1779503441000,-299.99,0.00012087,2]
[422837882,1779503441000,-150.99,0.00012087,2]
[422837881,1779503441000,-9184.56,0.00012087,2]
[422837884,1779503441000,-9999.99,0.00012087,2]
[422837879,1779503441000,-17333.67,0.00012087,2]
[422837989,1779503442000,-500.0,0.00013698,2]
[422837970,1779503442000,-540.99608918,0.00013698,2]
[422837974,1779503442000,-429.9949267,0.00013698,2]
[422837968,1779503442000,-500.0,0.00013698,2]
[422837967,1779503442000,-500.0,0.00013698,2]
[422837961,1779503442000,-500.0,0.00013698,2]
[422837969,1779503442000,-500.0,0.00013698,2]
[422837965,1779503442000,-500.0,0.00013698,2]
[422837964,1779503442000,-500.0,0.00013698,2]
[422837963,1779503442000,-523.69399517,0.00013698,2]
[422837962,1779503442000,-500.0,0.00013698,2]
[422837959,1779503442000,-500.0,0.00013698,2]
[422837966,1779503442000,-500.0,0.00013698,2]
[422837972,1779503442000,-500.0,0.00013698,2]
[422837993,1779503442000,-500.0,0.00013698,2]
[422837978,1779503442000,-500.0,0.00013698,2]
[422837979,1779503442000,-500.0,0.00013698,2]
[422837980,1779503442000,-500.0,0.00013698,2]
[422837991,1779503442000,-500.0,0.00013698,2]
[422837981,1779503442000,-500.0,0.00013698,2]
[422837982,1779503442000,-533.61263421,0.00013698,2]
[422837983,1779503442000,-500.0,0.00013698,2]
[422837984,1779503442000,-500.0,0.00013698,2]
[422837992,1779503442000,-500.0,0.00013698,2]
[422837986,1779503442000,-500.0,0.00013698,2]
[422837987,1779503442000,-500.0,0.00013698,2]
[422837988,1779503442000,-500.0,0.00013698,2]
[422837960,1779503442000,-500.0,0.00013698,2]
[422837976,1779503442000,-629.55339869,0.00013698,2]
[422837957,1779503442000,-500.0,0.00013698,2]
[422837942,1779503442000,-543.00996997,0.00013698,2]
[422837955,1779503442000,-500.0,0.00013698,2]
[422837985,1779503442000,-500.0,0.00013698,2]
[422837926,1779503442000,-500.0,0.00013698,2]
[422837927,1779503442000,-500.0,0.00013698,2]
[422837928,1779503442000,-500.0,0.00013698,2]
[422837929,1779503442000,-500.0,0.00013698,2]
[422837930,1779503442000,-500.0,0.00013698,2]
[422837931,1779503442000,-500.0,0.00013698,2]
[422837938,1779503442000,-500.0,0.00013698,2]
[422837932,1779503442000,-500.0,0.00013698,2]
[422837935,1779503442000,-500.0,0.00013698,2]
[422837937,1779503442000,-500.0,0.00013698,2]
[422837933,1779503442000,-500.0,0.00013698,2]
[422837934,1779503442000,-500.0,0.00013698,2]
[422837936,1779503442000,-500.0,0.00013698,2]
[422837958,1779503442000,-500.0,0.00013698,2]
[422837941,1779503442000,-500.0,0.00013698,2]
[422837951,1779503442000,-500.0,0.00013698,2]
[422837944,1779503442000,-500.0,0.00013698,2]
[422837946,1779503442000,-500.0,0.00013698,2]
[422837940,1779503442000,-500.0,0.00013698,2]
[422837948,1779503442000,-509.17650983,0.00013698,2]
[422837947,1779503442000,-500.0,0.00013698,2]
[422837943,1779503442000,-500.0,0.00013698,2]
[422837945,1779503442000,-500.0,0.00013698,2]
[422837950,1779503442000,-508.78567005,0.00013698,2]
[422837949,1779503442000,-500.0,0.00013698,2]
[422837953,1779503442000,-500.0,0.00013698,2]
[422837952,1779503442000,-500.0,0.00013698,2]
[422837954,1779503442000,-500.0,0.00013698,2]
[422837956,1779503442000,-500.0,0.00013698,2]
[422837939,1779503442000,-500.0,0.00013698,2]
[422837990,1779503442000,-500.0,0.00013698,2]
[422837977,1779503442000,-500.0,0.00013698,2]
[422837997,1779503442000,-500.0,0.00013698,2]
[422838027,1779503442000,-500.0,0.00013698,2]
[422838028,1779503442000,-500.0,0.00013698,2]
[422838031,1779503442000,-500.0,0.00013698,2]
[422838030,1779503442000,-500.0,0.00013698,2]
[422838029,1779503442000,-500.0,0.00013698,2]
[422838033,1779503442000,-500.0,0.00013698,2]
[422838037,1779503442000,-500.0,0.00013698,2]
[422838039,1779503442000,-547.35235462,0.00013698,2]
[422838040,1779503442000,-500.0,0.00013698,2]
[422838044,1779503442000,-166.66,0.00013699,2]
[422838043,1779503442000,-200.0,0.00013699,2]
[422838042,1779503442000,-500.0,0.00013698,2]
[422838041,1779503442000,-500.0,0.00013698,2]
[422838045,1779503442000,-2500.0,0.00013699,2]
[422838032,1779503442000,-500.0,0.00013698,2]
[422838046,1779503442000,-2000.0,0.00013699,7]
[422838047,1779503442000,-1000.0,0.00013699,2]
[422838048,1779503442000,-1000.0,0.00013699,15]
[422838049,1779503442000,-2315.0,0.0001372,2]
[422838050,1779503442000,-1588.0,0.0001372,2]
[422838052,1779503442000,-163.0,0.0001372,2]
[422838051,1779503442000,-2315.0,0.0001372,2]
[422838060,1779503442000,-235.148508,0.00013965,2]
[422838059,1779503442000,-217.946291,0.00013965,2]
[422838055,1779503442000,-6453.0,0.00013829,2]
[422838054,1779503442000,-500.0,0.00013784,2]
[422838058,1779503442000,-303.121123,0.00013965,2]
[422838056,1779503442000,-166.66,0.00013836,2]
[422838057,1779503442000,-2700.0,0.000139,5]
[422837996,1779503442000,-500.0,0.00013698,2]
[422838038,1779503442000,-500.0,0.00013698,2]
[422838026,1779503442000,-500.0,0.00013698,2]
[422838053,1779503442000,-228.5837534,0.00013766,2]
[422838025,1779503442000,-500.0,0.00013698,2]
[422838023,1779503442000,-500.0,0.00013698,2]
[422837994,1779503442000,-500.0,0.00013698,2]
[422837998,1779503442000,-500.0,0.00013698,2]
[422837999,1779503442000,-500.0,0.00013698,2]
[422838001,1779503442000,-500.0,0.00013698,2]
[422838000,1779503442000,-500.0,0.00013698,2]
[422838002,1779503442000,-500.0,0.00013698,2]
[422838003,1779503442000,-500.0,0.00013698,2]
[422838008,1779503442000,-500.0,0.00013698,2]
[422838006,1779503442000,-500.0,0.00013698,2]
[422838005,1779503442000,-294.81496871,0.00013698,2]
[422838007,1779503442000,-500.0,0.00013698,2]
[422838010,1779503442000,-500.0,0.00013698,2]
[422838009,1779503442000,-500.0,0.00013698,2]
[422838020,1779503442000,-500.0,0.00013698,2]
[422837995,1779503442000,-500.0,0.00013698,2]
[422838013,1779503442000,-500.0,0.00013698,2]
[422838022,1779503442000,-500.0,0.00013698,2]
[422838035,1779503442000,-500.0,0.00013698,2]
[422838034,1779503442000,-500.0,0.00013698,2]
[422838016,1779503442000,-500.0,0.00013698,2]
[422838019,1779503442000,-500.0,0.00013698,2]
[422838018,1779503442000,-500.0,0.00013698,2]
[422838024,1779503442000,-500.0,0.00013698,2]
[422838036,1779503442000,-500.0,0.00013698,2]
[422838021,1779503442000,-500.0,0.00013698,2]
[422838015,1779503442000,-500.0,0.00013698,2]
[422838012,1779503442000,-592.0817962,0.00013698,2]
[422838014,1779503442000,-500.0,0.00013698,2]
[422838017,1779503442000,-500.0,0.00013698,2]
[422838011,1779503442000,-500.0,0.00013698,2]
[422838095,1779503443000,-143214.72790763,0.0001425,2]
[422838093,1779503443000,-500.0,0.00014249,2]
[422838092,1779503443000,-500.0,0.00014249,2]
[422838096,1779503443000,-806.24918847,0.0001425,2]
[422838088,1779503443000,-500.0,0.00014249,2]
[422838094,1779503443000,-4476.354568,0.0001425,2]
[422838091,1779503443000,-421.51951156,0.00014249,2]
[422838099,1779503443000,-2000.0,0.00014329,7]
[422838098,1779503443000,-350.0,0.00014319,2]
[422838097,1779503443000,-200.33039717,0.00014252,2]
[422838090,1779503443000,-300.0,0.00014249,2]
[422838108,1779503443000,-3652.92369603,0.000147,2]
[422838102,1779503443000,-1588.0,0.0001436,2]
[422838104,1779503443000,-5679.37299434,0.000144,4]
[422838103,1779503443000,-166.66,0.00014384,2]
[422838100,1779503443000,-350.0,0.0001435,2]
[422838110,1779503443000,-7659.41839253,0.000147,2]
[422838106,1779503443000,-529.0,0.0001452,2]
[422838105,1779503443000,-446.23,0.0001444,2]
[422838107,1779503443000,-500.0,0.000146,5]
[422838109,1779503443000,-500.0,0.000147,5]
[422838089,1779503443000,-500.0,0.00014249,2]
[422838123,1779503443000,-1206.92126402,0.000148,2]
[422838101,1779503443000,-1588.0,0.0001436,2]
[422838087,1779503443000,-166.66,0.00014247,2]
[422838069,1779503443000,-3445.38,0.00014,2]
[422838084,1779503443000,-7512.68682553,0.00014199,2]
[422838124,1779503443000,-7659.41839253,0.000148,2]
[422838062,1779503443000,-19676.63263507,0.0001399,2]
[422838061,1779503443000,-166.66,0.00013973,2]
[422838074,1779503443000,-795.34,0.00014,2]
[422838064,1779503443000,-1321.41,0.00014,2]
[422838066,1779503443000,-1321.41,0.00014,2]
[422838065,1779503443000,-1321.41,0.00014,2]
[422838063,1779503443000,-1321.41,0.00014,2]
[422838075,1779503443000,-795.34,0.00014,2]
[422838067,1779503443000,-3445.38,0.00014,2]
[422838068,1779503443000,-3445.38,0.00014,2]
[422838083,1779503443000,-10047.20875933,0.00014199,2]
[422838070,1779503443000,-3445.38,0.00014,2]
[422838071,1779503443000,-969.69792251,0.00014,2]
[422838073,1779503443000,-795.34,0.00014,2]
[422838077,1779503443000,-250.0,0.00014,2]
[422838081,1779503443000,-2315.0,0.0001404,2]
[422838079,1779503443000,-10543.64848522,0.0001404,2]
[422838082,1779503443000,-166.66,0.0001411,2]
[422838076,1779503443000,-200.355989,0.00014,2]
[422838078,1779503443000,-11259.54824304,0.00014039,2]
[422838080,1779503443000,-163.0,0.0001404,2]
[422838086,1779503443000,-169.39,0.00014213,2]
[422838085,1779503443000,-37159.29915188,0.000142,2]
[422838072,1779503443000,-795.34,0.00014,2]
[422838112,1779503443000,-153.0,0.00014702,2]
[422838142,1779503443000,-7512.68682553,0.000149,2]
[422838111,1779503443000,-2398.86879266,0.000147,2]
[422838143,1779503443000,-304.72347666,0.000149,2]
[422838146,1779503443000,-150.0,0.00014924,2]
[422838145,1779503443000,-2398.86879265,0.000149,2]
[422838149,1779503443000,-2000.0,0.00014959,7]
[422838151,1779503443000,-213.6456078,0.0001499,2]
[422838150,1779503443000,-3746.1562851,0.0001498,2]
[422838154,1779503443000,-500.0,0.00014999,2]
[422838152,1779503443000,-213.6456078,0.0001499,2]
[422838153,1779503443000,-154.23803141,0.00014997,2]
[422838155,1779503443000,-500.0,0.00014999,2]
[422838157,1779503443000,-508.25566935,0.00014999,2]
[422838156,1779503443000,-500.0,0.00014999,2]
[422838160,1779503443000,-500.0,0.00014999,2]
[422838159,1779503443000,-500.0,0.00014999,2]
[422838158,1779503443000,-500.0,0.00014999,2]
[422838161,1779503443000,-500.0,0.00014999,2]
[422838162,1779503443000,-500.0,0.00014999,2]
[422838163,1779503443000,-455.94982552,0.00014999,2]
[422838165,1779503443000,-455.46575353,0.00014999,2]
[422838164,1779503443000,-3361.05423373,0.00014999,2]
[422838166,1779503443000,-500.0,0.00014999,2]
[422838167,1779503443000,-500.0,0.00014999,2]
[422838168,1779503443000,-500.0,0.00014999,2]
[422838113,1779503443000,-607.36580682,0.00014742,2]
[422838141,1779503443000,-10047.20875933,0.000149,2]
[422838147,1779503443000,-10000.0,0.00014939,2]
[422838137,1779503443000,-500.0,0.00014899,2]
[422838122,1779503443000,-75243.5603848,0.00014797,2]
[422838114,1779503443000,-500.0,0.00014746,2]
[422838119,1779503443000,-305.63426364,0.00014796,2]
[422838121,1779503443000,-14431.921565,0.00014797,2]
[422838115,1779503443000,-1271.0,0.00014747,2]
[422838118,1779503443000,-6060.0,0.00014747,2]
[422838117,1779503443000,-3635.0,0.00014747,2]
[422838116,1779503443000,-1224.0,0.00014747,2]
[422838125,1779503443000,-2398.86879265,0.000148,2]
[422838144,1779503443000,-7659.41839253,0.000149,2]
[422838128,1779503443000,-403.46466,0.0001485,2]
[422838127,1779503443000,-403.46467,0.0001485,2]
[422838129,1779503443000,-403.46466,0.0001485,2]
[422838134,1779503443000,-500.0,0.00014899,2]
[422838140,1779503443000,-500.0,0.000149,5]
[422838130,1779503443000,-406.0,0.0001487,2]
[422838148,1779503443000,-16789.1076788,0.00014947,2]
[422838138,1779503443000,-25000.0,0.000149,3]
[422838133,1779503443000,-500.0,0.00014899,2]
[422838139,1779503443000,-12113.06191959,0.000149,3]
[422838126,1779503443000,-500.0,0.000148,5]
[422838136,1779503443000,-500.0,0.00014899,2]
[422838132,1779503443000,-200.0,0.0001488,2]
[422838131,1779503443000,-200.0,0.00014879,2]
[422838135,1779503443000,-500.0,0.00014899,2]
[422838170,1779503444000,-500.0,0.00014999,2]
[422838171,1779503444000,-500.0,0.00014999,2]
[422838169,1779503444000,-500.0,0.00014999,2]
[422838172,1779503444000,-500.0,0.00014999,2]
[422838173,1779503444000,-500.0,0.00014999,2]
[422838174,1779503444000,-500.0,0.00014999,2]
[422838176,1779503444000,-500.0,0.00014999,2]
[422838175,1779503444000,-490.2789834,0.00014999,2]
[422838177,1779503444000,-500.0,0.00014999,2]
[422838182,1779503444000,-500.0,0.00014999,2]
[422838183,1779503444000,-197.49342213,0.00014999,2]
[422838184,1779503444000,-701188.06609576,0.00015,2]
[422838178,1779503444000,-500.0,0.00014999,2]
[422838179,1779503444000,-500.0,0.00014999,2]
[422838181,1779503444000,-500.0,0.00014999,2]
[422838180,1779503444000,-500.0,0.00014999,2]
[422838186,1779503446000,-804.35,0.00011536,2]
[422838188,1779503446000,-500.0,0.00013698,2]
[422838191,1779503446000,-564.92064987,0.000147,2]
[422838189,1779503446000,-500.0,0.00013698,2]
[422838190,1779503446000,-1355.0,0.00014536,2]
[422838187,1779503446000,-550.65,0.00011536,2]
[422838274,1779503563000,200.0,8.8e-05,3]
[422838275,1779503566000,400.0,8.9e-05,3]
[422838276,1779503568000,700.0,9e-05,3]
[422838282,1779504144000,2213.98831612,0.00028082,120]
[422838283,1779504187000,1163.62,0.00028082,120]
[422838284,1779504245000,200.0,4.776e-05,2]
[422838288,1779504306000,150.0,8.232e-05,2]
[422838287,1779504306000,150.0,8.061e-05,2]
[422838286,1779504306000,150.0,7.889e-05,2]
[422838285,1779504306000,150.0,7.718e-05,2]
[422838289,1779504309000,151.25107528,7.718e-05,2]
[422838290,1779504312000,150.54625845,7.718e-05,2]
[422838291,1779504312000,150.0,7.718e-05,2]
[422838293,1779504312000,150.0,8.004e-05,2]
[422838292,1779504312000,150.0,7.861e-05,2]
[422838294,1779504312000,150.0,8.147e-05,2]
[422838295,1779504313000,150.0,8.289e-05,2]
[422838299,1779504317000,150.0,8.232e-05,2]
[422838298,1779504317000,150.0,8.061e-05,2]
[422838297,1779504317000,150.0,7.889e-05,2]
[422838296,1779504317000,150.0,7.718e-05,2]
[422838300,1779504322000,150.0,7.718e-05,2]
[422838301,1779504322000,150.0,7.747e-05,2]
[422838305,1779504322000,150.0,7.866e-05,2]
[422838304,1779504322000,150.0,7.836e-05,2]
[422838303,1779504322000,150.0,7.807e-05,2]
[422838302,1779504322000,150.0,7.777e-05,2]
[422838312,1779504323000,150.0,8.043e-05,2]
[422838306,1779504323000,150.0,7.895e-05,2]
[422838308,1779504323000,104.79063462,7.925e-05,2]
[422838307,1779504323000,45.20936538,7.925e-05,2]
[422838310,1779504323000,150.0,7.984e-05,2]
[422838309,1779504323000,150.0,7.954e-05,2]
[422838311,1779504323000,150.0,8.014e-05,2]
[422838314,1779504323000,150.0,8.102e-05,2]
[422838316,1779504323000,150.0,8.161e-05,2]
[422838313,1779504323000,150.0,8.073e-05,2]
[422838321,1779504323000,150.0,8.309e-05,2]
[422838320,1779504323000,150.0,8.28e-05,2]
[422838315,1779504323000,150.0,8.132e-05,2]
[422838318,1779504323000,150.0,8.221e-05,2]
[422838317,1779504323000,150.0,8.191e-05,2]
[422838319,1779504323000,150.0,8.25e-05,2]
[422838325,1779504324000,150.0,8.004e-05,2]
[422838326,1779504324000,150.0,8.147e-05,2]
[422838323,1779504324000,150.0,7.718e-05,2]
[422838324,1779504324000,150.0,7.861e-05,2]
[422838322,1779504324000,150.0,8.339e-05,2]
[422838327,1779504325000,150.0,8.289e-05,2]
[422838328,1779504368000,494.33,7.789e-05,2]
[422838330,1779504445000,200.0,8.7e-05,3]
[422838331,1779504447000,400.0,8.8e-05,3]
[422838334,1779504449000,600.0,8.9e-05,3]
[422838333,1779504449000,1902.11393551,8.219e-05,2]
[422838332,1779504449000,97.88606449,8.219e-05,2]
[422838335,1779504451000,800.0,9e-05,3]
[422838336,1779504467000,500.0,0.0002763,120]
[422838337,1779504470000,231.34,7.704e-05,2]
[422838341,1779504540000,1000.0,0.00028081,120]
[422838343,1779504569000,166.51,6.152e-05,2]
[422838361,1779504631000,-3922.37240693,8.467e-05,2]
[422838347,1779504631000,-250.0,8.383e-05,2]
[422838348,1779504631000,-150.0,8.398e-05,2]
[422838349,1779504631000,-350.61,8.398e-05,2]
[422838346,1779504631000,-150.0,8.368e-05,2]
[422838351,1779504631000,-150.0,8.404e-05,2]
[422838350,1779504631000,-150.0,8.404e-05,2]
[422838360,1779504631000,-232707.48698775,8.467e-05,2]
[422838353,1779504631000,-514.62729366,8.406e-05,2]
[422838358,1779504631000,-150.0,8.432e-05,2]
[422838356,1779504631000,-150.0,8.427e-05,2]
[422838354,1779504631000,-1088.46653263,8.406e-05,2]
[422838357,1779504631000,-150.0,8.432e-05,2]
[422838359,1779504631000,-150.0,8.457e-05,2]
[422838352,1779504631000,-386.90617371,8.406e-05,2]
[422838355,1779504631000,-169.422,8.406e-05,2]
[422838373,1779504637000,-558.65094055,8.466e-05,2]
[422838374,1779504637000,-650.333792,8.466e-05,2]
[422838376,1779504637000,-650.333792,8.466e-05,2]
[422838375,1779504637000,-650.333792,8.466e-05,2]
[422838377,1779504637000,-650.333792,8.466e-05,2]
[422838397,1779504638000,-650.333792,8.466e-05,2]
[422838387,1779504638000,-623.81100116,8.466e-05,2]
[422838394,1779504638000,-650.333792,8.466e-05,2]
[422838395,1779504638000,-650.333792,8.466e-05,2]
[422838386,1779504638000,-26.52279084,8.466e-05,2]